[Event "TOP 16 - Final A"]
[Site "TOP16-Final-A"]
[Date "2021.01.17"]
[Round "12"]
[White "jncool68"]
[Black "ProfTerrieux"]
[Result "1/2-1/2"]
[WhiteElo "2225"]
[BlackElo "2296"]
[Annotator "NA RC"]
[PlyCount "59"]
[EventDate "2021.01.17"]
[EventType "blitz"]
[TimeControl "420+3"]

1. e4 {[%emt 0:00:02]} c5 {[%emt 0:00:01]} 2. Nf3 {[%emt 0:00:01]} e6 {[%emt 0:00:01]} 3. Be2 {[%emt 0:00:01]} Nc6 {[%emt 0:00:08]} 4. O-O {[%emt 0:00:01]} Nf6 {[%emt 0:00:07]} 5. Nc3 {[%emt 0:00:01]} e5 {[%emt 0:00:17]} 6. Bc4 {[%emt 0:00:25]} Be7 {[%emt 0:00:03]} 7. Ng5 {[%emt 0:00:04]} O-O {[%emt 0:00:01]} 8. f4 {[%emt 0:00:01]} exf4 {[%emt 0:00:07]} 9. d3 {[%emt 0:00:01]} Ne5 {[%emt 0:00:02]} 10. Bxf4 {[%emt 0:00:07]} Nxc4 {[%emt 0:00:16]} 11. dxc4 {[%emt 0:00:00]} h6 {[%emt 0:00:07]} 12. Nf3 {[%emt 0:00:02]} d6 {[%emt 0:00:03]} 13. Qd2 {[%emt 0:00:02]} Be6 {[%emt 0:00:11]} 14. b3 {[%emt 0:00:01]} Qb6 {[%emt 0:01:01]} 15. Rad1 {[%emt 0:00:05]} Rfd8 {[%emt 0:00:06]} 16. h3 {[%emt 0:00:05]} Bf8 {[%emt 0:00:05]} 17. Nd5 {[%emt 0:00:17]} Bxd5 {[%emt 0:00:32]} 18. exd5 {[%emt 0:00:01]} Re8 {[%emt 0:00:04]} 19. Rde1 {[%emt 0:00:19]} Qc7 {[%emt 0:00:09]} 20. Nh4 {[%emt 0:00:20]} Rxe1 {[%emt 0:00:28]} 21. Rxe1 {[%emt 0:00:01]} Qd7 {[%emt 0:00:07]} 22. g4 {[%emt 0:00:01]} Re8 {[%emt 0:00:10]} 23. Nf5 {[%emt 0:00:01]} Rxe1+ {[%emt 0:00:20]} 24. Qxe1 {[%emt 0:00:01]} h5 {[%emt 0:00:07]} 25. Qh4 {[%emt 0:00:27]} hxg4 {[%emt 0:00:18]} 26. hxg4 {[%emt 0:00:02]} Qe8 {[%emt 0:00:12]} 27. g5 {[%emt 0:00:17]} Qe4 {[%emt 0:00:06]} 28. gxf6 {[%emt 0:00:28]} Qxf5 {[%emt 0:00:05]} 29. fxg7 {[%emt 0:00:01]} Bxg7 {[%emt 0:00:19]} 30. Qd8+ {[%emt 0:00:09] jncool68 propose la nulle (Lag: Av=0.85s, max=6.2s)} 1/2-1/2

[Event "TOP 16 - Final A"]
[Site "TOP16-Final-A"]
[Date "2021.01.17"]
[Round "14"]
[White "jncool68"]
[Black "Tigran1984"]
[Result "0-1"]
[WhiteElo "2237"]
[BlackElo "2690"]
[Annotator "NA RC"]
[PlyCount "66"]
[EventDate "2021.01.17"]
[EventType "blitz"]
[TimeControl "420+3"]

1. e4 {[%emt 0:00:02]} g6 {[%emt 0:00:02]} 2. d4 {[%emt 0:00:01]} Bg7 {[%emt 0:00:01]} 3. Nc3 {[%emt 0:00:01]} c6 {[%emt 0:00:01]} 4. Be3 {[%emt 0:00:04]} d5 {[%emt 0:00:01]} 5. f3 {[%emt 0:00:01]} Qb6 {[%emt 0:00:03]} 6. Qd2 {[%emt 0:00:01]} Qxb2 {[%emt 0:00:01]} 7. Rb1 {[%emt 0:00:01]} Qa3 {[%emt 0:00:01]} 8. Nge2 {[%emt 0:00:03]} Nf6 {[%emt 0:00:11]} 9. Rb3 {[%emt 0:00:11]} Qa5 {[%emt 0:00:05]} 10. Nf4 {[%emt 0:00:03]} dxe4 {[%emt 0:00:36]} 11. fxe4 {[%emt 0:00:02]} e5 {[%emt 0:00:06]} 12. dxe5 {[%emt 0:00:06]} Qxe5 {[%emt 0:00:07]} 13. Be2 {[%emt 0:00:15]} O-O {[%emt 0:00:08]} 14. O-O {[%emt 0:00:01]} Nbd7 {[%emt 0:00:31]} 15. Nd3 {[%emt 0:00:03]} Nxe4 {[%emt 0:00:45]} 16. Nxe4 {[%emt 0:00:08]} Qxe4 {[%emt 0:00:01]} 17. Bf3 {[%emt 0:00:01]} Qc4 {[%emt 0:00:37]} 18. Bh6 {[%emt 0:00:19]} Bxh6 {[%emt 0:00:06]} 19. Qxh6 {[%emt 0:00:02]} Qd4+ {[%emt 0:00:01]} 20. Kh1 {[%emt 0:00:01]} Qg7 {[%emt 0:00:01]} 21. Qh4 {[%emt 0:00:02]} Re8 {[%emt 0:01:01]} 22. Rb4 {[%emt 0:00:11]} Ne5 {[%emt 0:00:24]} 23. Nxe5 {[%emt 0:00:24]} Rxe5 {[%emt 0:00:02]} 24. a4 {[%emt 0:00:00]} a5 {[%emt 0:00:21]} 25. Rb3 {[%emt 0:00:14]} Re8 {[%emt 0:00:06]} 26. h3 {[%emt 0:00:05]} Rb8 {[%emt 0:00:16]} 27. Rfb1 {[%emt 0:00:02]} Bf5 {[%emt 0:00:23]} 28. Rxb7 {[%emt 0:00:02]} Rxb7 {[%emt 0:00:03]} 29. Rxb7 {[%emt 0:00:00]} Qa1+ {[%emt 0:00:15]} 30. Kh2 {[%emt 0:00:01]} Qe5+ {[%emt 0:00:02]} 31. Qg3 {[%emt 0:00:00]} Qxg3+ {[%emt 0:00:35]} 32. Kxg3 {[%emt 0:00:00]} Bxc2 {[%emt 0:00:01]} 33. Bxc6 {[%emt 0:00:02]} Be4 {[%emt 0:00:11] jncool68 abandonne (Lag: Av=0.83s, max=4.6s)} 0-1